Cogmind - Beta 16.1 @@@ ROGUE MODE // 2026.03.07 @ 23:13:41 Player: Phxntom Result: Destroyed by D-53 Grenadier with Mini Grenade Launcher Performance ------------- Evolutions (0) 0 Regions Visited (2) 400 Robots Destroyed (4) 20 Value Destroyed (70) 70 Prototype IDs (0) 0 Alien Tech Used (0) 0 Bonus (-23) -23 TOTAL SCORE: 467 Bonus ------- Friendly Fire -23 Cogmind --------- Core Integrity 0/250 Matter 240/300 Energy 58/250 System Corruption 0% Temperature Cool (0) Movement Treading (160) Location -10/Mines Parts ------- > --- POWER (1) -------- Ion Engine > --- PROPULSION (2) --- Light Treads > --- UTILITY (2) ------ Heat Sink Small Storage Unit > --- WEAPON (2) ------- EM Pulse Gun > --- INVENTORY (8) ---- Wheel Terrain Scanner Small Laser Peak State ------------ > --- POWER ------------ Ion Engine > --- PROPULSION ------- Light Treads Wheel > --- UTILITY ---------- Heat Sink Small Storage Unit > --- WEAPON ----------- EM Pulse Gun Small Laser > --- INVENTORY -------- Ion Engine Light Treads Aluminum Leg Aluminum Leg Wheel Small Laser Grenade Launcher [Rating: 7] Favorites ----------- Power Ion Engine Engine Ion Engine Propulsion Light Treads Treads Light Treads Wheel Wheel Utility Small Storage Unit Device Heat Sink Storage Small Storage Unit Weapon Small Laser Energy Gun Small Laser Launcher Grenade Launcher Build | -11 -10 -10 ------- Run | Yrd Mat Min Slots Evolved . | . . . Power . | . . . Propulsion . | . . . Utility . | . . . Weapon . | . . . Parts Attached 11 | 7 1 3 Power 2 | 1 . 1 Engine 2 | 1 . 1 Core . | . . . Reactor . | . . . Propulsion 3 | 3 . . Treads 2 | 2 . . Leg . | . . . Wheel 1 | 1 . . Hover . | . . . Flight . | . . . Utility 2 | 1 1 . Device 1 | . 1 . Storage 1 | 1 . . Processor . | . . . Hackware . | . . . Protection . | . . . Artifact . | . . . Weapon 4 | 2 . 2 Energy Gun 2 | 2 . . Energy Cannon . | . . . Ballistic Gun . | . . . Ballistic Cannon . | . . . Launcher 2 | . . 2 Special Weapon . | . . . Impact Weapon . | . . . Slashing Weapon . | . . . Piercing Weapon . | . . . Special Melee Weapon . | . . . Unidentified Prototypes . | . . . Parts Lost 6 | . . 6 Power 1 | . . 1 Propulsion 2 | . . 2 Utility . | . . . Weapon 3 | . . 3 Highest Loss Streak 6 | . . 6 To Critical Strikes . | . . . Average Backups 7 | 3 7 6 Power . | 1 1 . Propulsion 3 | 2 3 1 Utility . | . . 1 Weapon 2 | . 2 3 Tool/Special . | . . . Unused Backups 5 | . 2 3 Power . | . . . Propulsion 3 | . 2 1 Utility 1 | . . 1 Weapon 1 | . . 1 Tool/Special . | . . . Average Slot Usage (%) 97 | . 98 81 Engine 13 | . 14 10 Treads 13 | . 14 10 Wheel 13 | . 14 10 Device 12 | . 12 14 Storage 14 | . 14 14 Energy Gun 26 | . 28 14 Peak Build Rating 7 | 6 7 7 Average Rating 6 | 4 6 5 On Entrance 4 | . 6 7 Avg Prop Armor Cover (%) 12 | 12 12 12 Naked Turns . | . . . Heaviest Build 15 | 13 14 15 Greatest Support 40 | 40 10 10 Greatest Overweight (x) 1 | 1 1 1 Average Overweight (x) . | . 1 1 Largest Inventory Capacity 8 | 8 8 8 Average Capacity 7 | 7 8 8 Most Carried 8 | 7 8 8 Average Carried 7 | 3 7 6 Final Capacity 8 | 8 8 8 Final Carried 7 | 6 7 3 Class Distribution -------------------- 100% | Mutant Dominant Class ---------------- Mutant | -10/Materials Mutant | -10/Mines Resources | -11 -10 -10 ----------- Run | Yrd Mat Min Matter Collected 280 | 196 84 . Remotely . | . . . Salvage Created 93 | . 70 23 Parts 10 | . 6 4 Haulers Intercepted . | . . . Recyclers Shooed . | . . . Parts Field Recycled . | . . . Retrieved Matter . | . . . Parts Self-Destructed . | . . . Prevented . | . . . Parts Restored . | . . . Kills | -11 -10 -10 ------- Run | Yrd Mat Min Combat Hostiles Destroyed 3 | . 1 2 Guns 1 | . 1 . AOE 2 | . . 2 Classes Destroyed 3 | . 2 1 Watcher 1 | . 1 . Swarmer 2 | . . 2 Grunt 1 | . 1 . Best Kill Streak 2 | . 1 2 Combat Bots Only 2 | . 1 2 Max Kills in Single Turn 2 | . 1 2 Gunslinging . | . . . Exploded 2 | . . 2 Melee . | . . . Uniques/NPCs Destroyed . | . . . Combat | -11 -10 -10 -------- Run | Yrd Mat Min Hostile Shots Fired 53 | . 7 46 Missed 19 | . 1 18 Hits 34 | . 6 28 Projectile 34 | . 6 28 AOE 13 | . . 13 Damage Taken 810 | . 69 741 Core 253 | . . 253 Absorbed by Shields . | . . . Core Remaining (%) 100 | 100 . . Volleys Fired 15 | . 7 8 Largest 2 | . 2 2 Hottest 80 | . 80 70 Shots Fired 26 | . 14 12 Gun 22 | . 14 8 Cannon . | . . . Launcher 4 | . . 4 Special . | . . . Kinetic . | . . . Thermal 15 | . 7 8 Explosive 4 | . . 4 Electromagnetic 7 | . 7 . Robot Hit Streak 5 | . 5 4 Robot Miss Streak 3 | . 3 3 Penetration Max . | . . . Secondary Targets . | . . . Shots Hit Robots 13 | . 7 6 Core Hits 9 | . 3 6 Critical Kills . | . . . Critical Parts Destroyed . | . . . Critical Strikes . | . . . Melee Attacks . | . . . Impact . | . . . Slashing . | . . . Piercing . | . . . Sneak Attacks . | . . . Combat Hostiles . | . . . Follow-up Attacks . | . . . Damage Inflicted 273 | . 91 182 Guns 123 | . 91 32 Cannons . | . . . Explosions 150 | . . 150 Melee . | . . . Ramming . | . . . Kinetic . | . . . Thermal 66 | . 34 32 Explosive 150 | . . 150 Electromagnetic 57 | . 57 . Impact . | . . . Slashing . | . . . Piercing . | . . . Highest Corruption . | . . . Average Corruption . | . . . Corruption Purged . | . . . Corruption Blocked . | . . . Overload Shots . | . . . Overflow Damage 6 | . . 6 Projectiles . | . . . Explosions 6 | . . 6 Melee . | . . . Knockbacks . | . . . Impact . | . . . Kinetic . | . . . Secondary . | . . . Self-Inflicted Damage 46 | . . 46 Shots 3 | . . 3 Rammed . | . . . Targets Rammed . | . . . Kicked . | . . . Crushed . | . . . Highest Temperature 2 | . 2 . Average Temperature 2 | . 2 . Received Heat Transfer 36 | . 36 . Siege Activations . | . . . Martial Activations . | . . . Shielding Activations . | . . . Robots Disrupted . | . . . Combat Hostiles . | . . . Robots Corrupted . | . . . Combat Hostiles . | . . . Parts Fried 1 | . 1 . Impact Corruptions . | . . . Robots Melted . | . . . Combat Hostiles . | . . . Parts Melted . | . . . Heat Transferred 150 | . 75 75 Parts Sabotaged . | . . . Parts Stolen . | . . . Parts Stripped . | . . . Power Chain Reactions . | . . . Alert | -11 -10 -10 ------- Run | Yrd Mat Min Maximum Alert Level . | . . . Low Security (%) 100 | 100 100 100 Level 1 . | . . . Level 2 . | . . . Level 3 . | . . . Level 4 . | . . . Level 5 . | . . . High Security . | . . . Max Security . | . . . Peak Influence 75 | . 35 75 Initial . | . . . Average 5 | . 3 41 Influence Increases 158 | . 75 83 Destroy 0b10 Robot/C 60 | . 20 40 Destroy 0b10 Robot/NC 5 | . 5 . Destroy Leader 22 | . 12 10 Successful Hack 8 | . 8 . Destroy Structure 18 | . . 18 Lose Combat Pursuer 45 | . 30 15 Influence Decreases 145 | . 75 70 Time Decay 85 | . 75 10 Lost Part 60 | . . 60 Squads Dispatched 3 | . 3 . Investigation . | . . . Extermination . | . . . Reinforcement 3 | . 3 . Assault . | . . . Garrison . | . . . Intercept . | . . . Searches Triggered . | . . . Construction Impeded . | . . . Haulers Reinforced . | . . . Active Scanning Responses . | . . . Cargo Convoy Interrupts . | . . . Stealth | -11 -10 -10 --------- Run | Yrd Mat Min Distress Signals 2 | . 2 . Communications Jammed . | . . . Distress Signals . | . . . Times Spotted 33 | . 9 24 Peak Tracking Total 19 | . 3 19 Tactical Retreats 3 | . 2 1 Traps | -11 -10 -10 ------- Run | Yrd Mat Min Traps Triggered . | . . . Indirectly . | . . . Trap Hack Attempts . | . . . Triggered . | . . . Disarmed . | . . . Reprogrammed . | . . . Reused . | . . . Traps Extracted . | . . . Installed . | . . . Triggered . | . . . Machines | -11 -10 -10 ---------- Run | Yrd Mat Min Machines Disabled . | . . . Max in Single Turn . | . . . Machines Repaired . | . . . Machines Dismantled . | . . . Machines Sabotaged . | . . . Overloaded Fab Kills . | . . . Hacking | -11 -10 -10 --------- Run | Yrd Mat Min Machines Accessed 1 | . 1 . Terminals 1 | . 1 . Fabricators . | . . . Repair Stations . | . . . Recycling Units . | . . . Scanalyzers . | . . . Garrison Access . | . . . Total Hacks 2 | . 2 . Successful 1 | . 1 . Failed 1 | . 1 . Catastrophic . | . . . Database Lockouts . | . . . Manual 2 | . 2 . Terminals 2 | . 2 . Fabricators . | . . . Repair Stations . | . . . Recycling Units . | . . . Scanalyzers . | . . . Garrison Access . | . . . Terminal Hacks 1 | . 1 . Branch Access Points 1 | . 1 . Fabricator Hacks . | . . . Repair Station Hacks . | . . . Recycling Unit Hacks . | . . . Scanalyzer . | . . . Garrison Access Hacks . | . . . Unauthorized Hacks . | . . . Terminals . | . . . Fabricators . | . . . Repair Stations . | . . . Recycling Units . | . . . Scanalyzers . | . . . Garrison Access . | . . . Data Cores Recovered . | . . . Used . | . . . Hacking Detections 1 | . 1 . Full Trace Events . | . . . Feedback Events . | . . . Feedback Blocked . | . . . Robot Schematics Acquired . | . . . Robots Built . | . . . Authchips . | . . . Time . | . . . Total Robot Build Rating . | . . . Part Schematics Acquired . | . . . Parts Built . | . . . Authchips . | . . . Time . | . . . Total Part Build Rating . | . . . Part Studies Acquired . | . . . Parts Repaired . | . . . Time . | . . . Parts Recycled . | . . . Recycled Matter . | . . . Retrieved Matter . | . . . Retrieved Components . | . . . Parts Scanalyzed . | . . . Part Schematics Acquired . | . . . Parts Damaged . | . . . Bothacking | -11 -10 -10 ------------ Run | Yrd Mat Min Used RIF Installer . | . . . Robots Hacked . | . . . Non-combat . | . . . Combat . | . . . Robot Hacks Applied . | . . . Relay Couplers Released . | . . . Fabnet Peak Effective % . | . . . Robots Rewired . | . . . Allies Hacked . | . . . Hacks Repelled . | . . . Allies | -11 -10 -10 -------- Run | Yrd Mat Min Total Allies 1 | . . 1 Largest Group 1 | . . 1 Highest-Rated Group 31 | . . 31 Highest-Rated Ally 31 | . . 31 Total Orders . | . . . Ally Attacks 4 | . . 4 Total Damage 42 | . . 42 Kills . | . . . Allies Corrupted . | . . . Allies Melted . | . . . Intel | -11 -10 -10 ------- Run | Yrd Mat Min Active Infowar (turns) . | . . . Robot Analysis Total . | . . . Derelict Logs Recovered . | . . . Drone Launches . | . . . Drone Recoveries . | . . . Exploration | -11 -10 -10 ------------- Run | Yrd Mat Min Turns Passed 604 | 76 497 31 Spaces Moved 411 | 56 349 6 Core 20 | 20 . . Treads 20 | 20 . . Legs . | . . . Wheels 371 | 16 349 6 Hover . | . . . Flight . | . . . Fastest Speed 50 | 50 95 95 Average Speed 95 | 102 95 95 Slowest Speed 160 | 160 95 95 Overloaded Moves . | . . . Propulsion Burnouts . | . . . Robots Hopped . | . . . Potential Cave-ins . | . . . Cave-ins Triggered . | . . . Exploration Rate (%) 16 | 3 38 9 Regions Visited 2 Branch Regions 1 Pre-discovered Areas . | . . . Known Exits Taken 1 | . 1 . Unknown Exits Taken 1 | 1 . . Scrap Searched . | . . . Spaces Dug . | . . . Terrain Destroyed 20 | . . 20 Melee . | . . . Projectile . | . . . AOE 20 | . . 20 Terrain Rammed . | . . . Walls Destroyed . | . . . Machines Disabled . | . . . Actions | -11 -10 -10 --------- Run | Yrd Mat Min Total 595 | 75 500 20 Wait 139 | . 139 . Move 409 | 55 348 6 Hop . | . . . Pick Up 15 | 12 3 . Fast Attach 1 | . 1 . Attach 12 | 7 . 5 Detach 2 | 1 . 1 Swap . | . . . Drop 2 | . 2 . Fire 15 | . 7 8 Melee . | . . . Ram . | . . . Kick . | . . . Crush . | . . . Escape Stasis . | . . . Rewire . | . . . Trap . | . . . Miscellaneous . | . . . Route ------- -11/Scrapyard -10/Materials (discovered 3 exits: [*Mat] / *Min x2) -10/Mines (discovered 1 exit: [*Mat]) History --------- Turn | Location | Event 9 | -11/Scrapyard | Discovered new exit (range 14) 77 | -11/Scrapyard | Entered Materials 311 | -10/Materials | Build established: Mutant 367 | -10/Materials | Identified exit to Mines 554 | -10/Materials | Discovered new exit (range 16) 574 | -10/Materials | Entered Mines 588 | -10/Mines | Assembled infested the area 588 | -10/Mines | Discovered new exit (range 7) 594 | -10/Mines | Received a Mining Laser from a helpful Derelict 601 | -10/Mines | Core integrity fell below 50% 604 | -10/Mines | Core integrity fell below 20% 605 | -10/Mines | Destroyed by D-53 Grenadier with Mini Grenade Launcher Last Messages --------------- 00595_ The unstable cave ceiling collapses. 00595_ as-98779 destroyed. 00596_ The unstable cave ceiling collapses. 00596_ as-18999 destroyed. 00597_ 5N-LJ8(g): "You're apparently new around these parts, I'll cover you." 00598_ as-38747 destroyed. 00598_ as-70595 destroyed. 00598_ Lgt. Treads destroyed. 00599_ as-21786 destroyed. 00600_ U-05 Engineer lays Concrete. 00600_ D-53 Grenadier suffers critical hit (Burn). 00600_ Grenade Launcher destroyed. 00601_ U-05 Engineer lays Concrete. 00601_ Sml. Laser destroyed. 00601_ as-36191 destroyed. 00601_ K-01 Serf cleans the Core Extractor. 00602_ U-05 Engineer lays Concrete. 00604_ K-01 Serf cleans the Core Extractor. 00605_ U-05 Engineer lays Concrete. Map ----- +----------------------------------------------------+ | | | | | | | | | | | | | | | | | | | | | | | | | | | | | | | ?????????????????????????????????????????????????? | | ????????????????????##########???????????????????? | | ???????????????????## #??????????#####????? | | ??????????????????## #???????? #????? | | ??????????????????# g u #??????? ?????? | | ??????????????????# | % ####### k ??????? | | ???????????????????# ## """????????? | | ???????????????????## ""?????????? | | ??????????????????## d #??????????????? | | ?????????????????## d #??????????????? | | ?????????????????# @ ##??????????????? | | ?????????? a a % % ##???????????????? | | ?????????? aa a % ###????????????????? | | ??????????? a### #?????????????????? | | ???????????????# #?????????????????? | | ???????????????# # ## # #?????????????????? | | ?????????????????#??####### ###?????????????????? | | ???????????????????????????###???????????????????? | | ?????????????????????????????????????????????????? | | ?????????????????????????????????????????????????? | | ?????????????????????????????????????????????????? | | ?????????????????????????????????????????????????? | | ?????????????????????????????????????????????????? | | ?????????????????????????????????????????????????? | | ?????????????????????????????????????????????????? | | ?????????????????????????????????????????????????? | | ?????????????????????????????????????????????????? | | ?????????????????????????????????????????????????? | | ?????????????????????????????????????????????????? | | ?????????????????????????????????????????????????? | | ?????????????????????????????????????????????????? | | ?????????????????????????????????????????????????? | | ?????????????????????????????????????????????????? | | ?????????????????????????????????????????????????? | | ?????????????????????????????????????????????????? | +----------------------------------------------------+ Best States ------------- Heat Dissipation 35 Energy Generation 10 Energy Capacity 250 Matter Stores 290 Matter Capacity 300 Sight Range 16 Terrain Scan Density 10 Evasion (%) 50 Recoil Reduction 2 Item Schematics ----------------- None Robot Schematics ------------------ None Fabricated ------------ Nothing Repaired ---------- Nothing Studied --------- None Alien Tech Used ----------------- None Achievements -------------- None Challenges ------------ None Game ------ Seed NovaCargoMatterbank Manual? 0 Play Time 00:15:57 Cumulative 11.5 hours Start 2026.03.07 @ 22:58:24 End 2026.03.07 @ 23:13:41 Sessions 1 Manual Loads 0 Difficulty Rogue Special Mode None Game No. 15 Rogue 11 Adventurer 4 Explorer 0 Win Type - Total 0 Types 0/0/0/0/0/0/0/0/0/0 Lore% 2 Gallery% 13 Achievement% 13 Wizard Run 0 Options --------- Layout 0 ASCII 0 Keyboard 1 Movement Numpad Keybinds 0 Fullscreen 1 Font 24/Smallcaps Map View 38x25 Zoom Use 98% Tactical HUD 1 Map Filters NONE Filters NONE Steam 1 RUN: 28c70557-aaf9-466f-b17a-0852d91420fb